fUST/lending_fUST_20250119
["ID","MTS","AMOUNT","RATE_DAILY","PERIOD"]
[349542123,1737286244012,-567.35,0.00022054,3]
[349542125,1737286244021,-500.0,0.00022054,3]
[349542127,1737286244030,-189.849554,0.00022054,7]
[349542129,1737286244039,-500.0,0.00022054,3]
[349542131,1737286244049,-500.0,0.00022054,3]
[349542132,1737286244058,-500.0,0.00022054,3]
[349542134,1737286244067,-151.0,0.00022054,7]
[349542136,1737286244076,-218.071787,0.00022054,7]
[349542139,1737286244086,-500.0,0.00022054,3]
[349542140,1737286244095,-500.0,0.00022054,3]
[349542141,1737286244104,-21369.48,0.00022054,3]
[349542142,1737286244113,-371.728511,0.00022054,7]
[349542143,1737286244122,-371.728511,0.00022054,7]
[349542144,1737286244132,-371.728511,0.00022054,7]
[349542145,1737286244142,-184.888945,0.00022054,7]
[349542146,1737286244151,-371.728511,0.00022054,7]
[349542147,1737286244160,-184.888945,0.00022054,7]
[349542148,1737286244170,-184.888945,0.00022054,7]
[349542149,1737286244179,-184.888945,0.00022054,7]
[349542150,1737286244188,-184.888945,0.00022054,7]
[349542151,1737286244198,-371.728511,0.00022054,7]
[349542152,1737286244208,-371.728511,0.00022054,7]
[349542153,1737286244218,-371.728511,0.00022054,7]
[349542154,1737286244229,-184.888945,0.00022054,7]
[349542155,1737286244239,-184.888945,0.00022054,7]
[349542156,1737286244249,-184.888945,0.00022054,7]
[349542157,1737286244259,-371.728511,0.00022054,7]
[349542158,1737286244269,-184.888945,0.00022054,7]
[349542159,1737286244280,-500.0,0.00022054,2]
[349542160,1737286244289,-184.888945,0.00022054,7]
[349542161,1737286244299,-500.0,0.00022054,3]
[349542162,1737286244308,-500.0,0.00022054,3]
[349542163,1737286244318,-151.0,0.00022054,7]
[349542164,1737286244327,-151.0,0.00022054,7]
[349542165,1737286244336,-151.0,0.00022054,7]
[349542166,1737286244345,-151.0,0.00022054,7]
[349542168,1737286244355,-151.0,0.00022054,7]
[349542169,1737286244365,-1046.97,0.00022054,3]
[349542170,1737286244374,-500.0,0.00022054,3]
[349542171,1737286244383,-14060.88,0.00022054,3]
[349542172,1737286244393,-1128.588345,0.00022054,7]
[349542173,1737286244403,-1128.588345,0.00022054,7]
[349542174,1737286244412,-8262.88,0.00022054,3]
[349542175,1737286244422,-500.0,0.00022054,3]
[349542176,1737286244431,-500.0,0.00022054,3]
[349542177,1737286244441,-1128.588345,0.00022054,7]
[349542178,1737286244450,-1128.588345,0.00022054,7]
[349542179,1737286244460,-1128.588345,0.00022054,7]
[349542180,1737286244469,-2649.98,0.00022054,3]
[349542181,1737286244480,-1128.588345,0.00022054,7]
[349542183,1737286244489,-500.0,0.00022054,3]
[349542185,1737286244498,-1128.588345,0.00022054,7]
[349542186,1737286244508,-1128.588345,0.00022054,7]
[349542188,1737286244517,-1128.588345,0.00022054,7]
[349542189,1737286244527,-1128.588345,0.00022054,7]
[349542190,1737286244537,-3161.86,0.00022054,3]
[349542192,1737286244546,-500.0,0.00022054,3]
[349542193,1737286244556,-151.0,0.00022054,7]
[349542194,1737286244565,-151.0,0.00022054,7]
[349542195,1737286244575,-151.0,0.00022054,7]
[349542196,1737286244584,-151.0,0.00022054,7]
[349542197,1737286244594,-151.0,0.00022054,7]
[349542198,1737286244604,-500.0,0.00022054,3]
[349542200,1737286244613,-603.19,0.00022054,3]
[349542202,1737286244622,-500.0,0.00022054,3]
[349542203,1737286244631,-1541.97,0.00022054,3]
[349542205,1737286244641,-500.0,0.00022054,3]
[349542207,1737286244650,-500.0,0.00022054,3]
[349542208,1737286244659,-500.0,0.00022054,3]
[349542209,1737286244668,-3653.17,0.00022054,3]
[349542210,1737286244677,-288.017159,0.00022054,7]
[349542211,1737286244686,-288.017159,0.00022054,7]
[349542212,1737286244695,-1317.97,0.00022054,3]
[349542213,1737286244704,-288.017159,0.00022054,7]
[349542214,1737286244713,-288.017159,0.00022054,7]
[349542215,1737286244722,-770.76,0.00022054,3]
[349542216,1737286244732,-288.017159,0.00022054,7]
[349542217,1737286244742,-288.017159,0.00022054,7]
[349542218,1737286244751,-288.017159,0.00022054,7]
[349542219,1737286244760,-288.017159,0.00022054,7]
[349542220,1737286244769,-288.017159,0.00022054,7]
[349542221,1737286244779,-288.017159,0.00022054,7]
[349542222,1737286244788,-1217.37,0.00022054,3]
[349542223,1737286244797,-500.0,0.00022054,3]
[349542224,1737286244806,-500.0,0.00022054,3]
[349542225,1737286244816,-500.0,0.00022054,3]
[349542226,1737286244825,-500.0,0.00022054,3]
[349542227,1737286244834,-500.0,0.00022054,3]
[349542228,1737286244843,-500.0,0.00022054,3]
[349542229,1737286244852,-601.0309904,0.00022054,3]
[349542230,1737286244861,-3000.0,0.0002206,2]
[349542231,1737286244870,-3000.0,0.0002207,2]
[349542232,1737286244879,-500.0,0.00022073,2]
[349542233,1737286244889,-500.0,0.00022073,2]
[349542234,1737286244899,-5656.598706,0.0002208,2]
[349542235,1737286244908,-151.0,0.0002208,7]
[349542238,1737286244919,-371.728511,0.0002208,7]
[349542240,1737286244928,-371.728511,0.0002208,7]
[349542241,1737286244938,-2923.35,0.000221,14]
[349542242,1737286244949,-7958.79,0.000221,14]
[349542243,1737286244960,-16065.45,0.000221,2]
[349542245,1737286244969,-151.0,0.000221,10]
[349542247,1737286244980,-151.0,0.000221,9]
[349542248,1737286244989,-151.0,0.000221,7]
[349542249,1737286244998,-151.0,0.000221,7]
[349542250,1737286245007,-151.0,0.000221,2]
[349542251,1737286245016,-151.0,0.000221,7]
[349542253,1737286245026,-151.0,0.000221,7]
[349542255,1737286245035,-188.616768,0.000221,7]
[349542256,1737286245044,-151.0,0.000221,6]
[349542257,1737286245054,-151.0,0.000221,5]
[349542258,1737286245063,-151.0,0.000221,6]
[349542259,1737286245072,-151.0,0.000221,9]
[349542261,1737286245081,-151.0,0.00022106,7]
[349542263,1737286245090,-1366.162932,0.00022106,7]
[349542265,1737286245100,-1366.162932,0.00022106,7]
[349542267,1737286245109,-13253.41583377,0.00022107,3]
[349542269,1737286245118,-494.545139,0.00022107,7]
[349542271,1737286245127,-494.545139,0.00022107,7]
[349542274,1737286245137,-151.0,0.00022107,7]
[349542279,1737286245147,-2475.542165,0.00022107,7]
[349542283,1737286245156,-2475.542165,0.00022107,7]
[349542287,1737286245166,-151.0,0.00022107,7]
[349542290,1737286245175,-184.888945,0.00022107,7]
[349542292,1737286245184,-184.888945,0.00022107,7]
[349542294,1737286245194,-151.0,0.00022107,7]
[349542296,1737286245203,-1128.588345,0.00022107,7]
[349542298,1737286245212,-1128.588345,0.00022107,7]
[349542300,1737286245222,-1862.94803808,0.00022145,2]
[349542302,1737286245234,-223.1183641,0.00022167,2]
[349542304,1737286245243,-500.0,0.00022173,2]
[349542306,1737286245253,-501.62297975,0.00022173,2]
[349542309,1737286245262,-603.01419352,0.00022173,2]
[349542312,1737286245272,-500.0,0.00022173,2]
[349542315,1737286245282,-505.94381747,0.00022173,2]
[349542318,1737286245293,-500.0,0.00022173,2]
[349542320,1737286245303,-506.12787529,0.00022173,2]
[349542322,1737286245312,-179.86283001,0.00022173,2]
[349542324,1737286245322,-500.0,0.00022173,2]
[349542326,1737286245332,-500.0,0.00022173,2]
[349542328,1737286245341,-500.0,0.00022173,2]
[349542329,1737286245350,-505.50786307,0.00022173,2]
[349542330,1737286245360,-160.20374045,0.00022173,2]
[349542331,1737286245369,-501.02604644,0.00022173,2]
[349542332,1737286245378,-151.1859496,0.00022173,2]
[349542333,1737286245387,-227.93617263,0.00022173,2]
[349542334,1737286245397,-500.75776866,0.00022173,2]
[349542335,1737286245406,-501.25387518,0.00022173,2]
[349542336,1737286245416,-500.0,0.00022173,2]
[349542337,1737286245425,-151.0,0.00022173,7]
[349542338,1737286245434,-151.0,0.00022173,7]
[349542339,1737286245444,-198.55524,0.00022173,2]
[349542340,1737286245454,-500.0,0.00022191,3]
[349542341,1737286245463,-500.0,0.00022191,3]
[349542342,1737286245473,-500.0,0.00022191,3]
[349542343,1737286245483,-500.0,0.00022191,3]
[349542344,1737286245493,-1033.51,0.00022191,3]
[349542345,1737286245502,-500.0,0.00022191,3]
[349542346,1737286245512,-500.0,0.00022191,3]
[349542347,1737286245521,-1069.31,0.00022191,3]
[349542348,1737286245530,-500.0,0.00022191,3]
[349542349,1737286245540,-500.0,0.00022191,3]
[349542350,1737286245550,-625.18,0.00022191,3]
[349542351,1737286245560,-151.0,0.00022191,7]
[349542352,1737286245569,-151.0,0.00022191,7]
[349542353,1737286245579,-500.0,0.00022191,3]
[349542354,1737286245588,-151.0,0.00022191,7]
[349542355,1737286245597,-151.0,0.00022191,7]
[349542356,1737286245606,-500.0,0.00022191,3]
[349542357,1737286245616,-500.0,0.00022191,3]
[349542358,1737286245625,-500.0,0.00022191,3]
[349542359,1737286245634,-500.0,0.00022191,3]
[349542360,1737286245643,-911.53,0.00022191,3]
[349542361,1737286245652,-587.36,0.00022191,3]
[349542363,1737286245661,-500.0,0.00022191,3]
[349542365,1737286245670,-1109.87,0.00022191,3]
[349542367,1737286245680,-500.0,0.00022191,3]
[349542369,1737286245690,-500.0,0.00022191,3]
[349542371,1737286245699,-151.0,0.00022191,7]
[349542372,1737286245709,-151.0,0.00022191,7]
[349542373,1737286245718,-151.0,0.00022191,7]
[349542374,1737286245729,-500.0,0.00022191,3]
[349542375,1737286245738,-500.0,0.00022191,3]
[349542376,1737286245748,-680.95,0.00022191,3]
[349542377,1737286245757,-500.0,0.00022191,3]
[349542378,1737286245767,-151.0,0.00022191,7]
[349542379,1737286245776,-151.0,0.00022191,7]
[349542380,1737286245785,-151.0,0.00022191,7]
[349542381,1737286245794,-500.0,0.00022191,3]
[349542382,1737286245803,-500.0,0.00022191,3]
[349542383,1737286245813,-500.0,0.00022191,3]
[349542384,1737286245822,-500.0,0.00022191,3]
[349542385,1737286245831,-500.0,0.00022191,3]
[349542386,1737286245840,-500.0,0.00022191,3]
[349542387,1737286245849,-500.0,0.00022191,3]
[349542395,1737286245950,-500.0,0.00022191,3]
[349542396,1737286245961,-494.545139,0.00022191,7]
[349542397,1737286245971,-494.545139,0.00022191,7]
[349542398,1737286245983,-494.545139,0.00022191,7]
[349542399,1737286245993,-494.545148,0.00022191,7]
[349542401,1737286246002,-500.0,0.00022191,3]
[349542402,1737286246012,-500.0,0.00022191,3]
[349542404,1737286246021,-500.0,0.00022191,3]
[349542406,1737286246031,-500.0,0.00022191,3]
[349542408,1737286246040,-1034.2,0.00022191,2]
[349542410,1737286246050,-500.0,0.00022191,3]
[349542412,1737286246059,-151.0,0.00022191,7]
[349542413,1737286246068,-151.0,0.00022191,7]
[349542415,1737286246077,-500.0,0.00022191,3]
[349542417,1737286246087,-500.0,0.00022191,3]
[349542419,1737286246096,-1681.82,0.00022191,3]
[349542421,1737286246106,-500.0,0.00022191,3]
[349542423,1737286246116,-863.95,0.00022191,3]
[349542424,1737286246126,-500.0,0.00022191,3]
[349542426,1737286246136,-2488.15,0.00022191,3]
[349542427,1737286246145,-500.0,0.00022191,3]
[349542428,1737286246154,-789.57,0.00022191,3]
[349542429,1737286246164,-500.0,0.00022191,3]
[349542430,1737286246175,-500.0,0.00022191,3]
[349542431,1737286246184,-2775.52,0.00022191,3]
[349542432,1737286246194,-500.0,0.00022191,3]
[349542433,1737286246203,-478.52472172,0.00022191,3]
[349542434,1737286246213,-500.0,0.00022191,3]
[349542436,1737286246223,-3367.97,0.00022191,3]
[349542438,1737286246234,-8186.41,0.00022191,3]
[349542440,1737286246243,-500.0,0.00022191,3]
[349542441,1737286246252,-500.0,0.00022191,3]
[349542442,1737286246261,-745.84,0.00022191,3]
[349542444,1737286246270,-12095.39,0.00022191,3]
[349542445,1737286246280,-500.0,0.00022191,3]
[349542446,1737286246289,-151.0,0.00022191,7]
[349542447,1737286246298,-151.0,0.00022191,7]
[349542448,1737286246308,-1366.162932,0.00022191,7]
[349542449,1737286246317,-606.65025717,0.00022191,7]
[349542450,1737286246476,-759.51267483,0.00022191,7]
[349542451,1737286246487,-500.0,0.00022191,3]
[349542452,1737286246497,-1513.42357117,0.00022191,7]
[349542453,1737286246509,-412.9675,0.00022191,7]
[349542454,1737286246521,-549.15109383,0.00022191,7]
[349542455,1737286246530,-2475.542165,0.00022191,7]
[349542456,1737286246540,-1366.162932,0.00022191,7]
[349542457,1737286246549,-500.0,0.00022191,3]
[349542458,1737286246559,-1366.16293,0.00022191,7]
[349542459,1737286246568,-3958.81624029,0.00022191,3]
[349542460,1737286246581,-308.91,0.00022191,3]
[349542462,1737286246683,-151.0,0.00021917,2]
[349542464,1737286246693,-1316.95,0.00022191,3]
[349542466,1737286246704,-30492.95375971,0.00022191,3]
[349542467,1737286246713,-2475.542165,0.00022191,7]
[349542468,1737286246723,-2475.54217362,0.00022191,7]
[349542469,1737286246735,-1140.02,0.00022191,3]
[349542471,1737286246744,-407.48352257,0.00022191,3]
[349542473,1737286246753,-500.0,0.00022191,3]
[349542474,1737286246763,-500.0,0.00022191,3]
[349542475,1737286246773,-6602.35,0.00022191,3]
[349542477,1737286246782,-4060.92,0.00022191,3]
[349542478,1737286246791,-500.0,0.00022191,3]
[349542479,1737286246801,-500.0,0.00022191,3]
[349542480,1737286246812,-1554.19,0.00022191,3]
[349542481,1737286246821,-1478.39,0.00022191,3]
[349542482,1737286246830,-500.0,0.00022191,3]
[349542484,1737286246840,-1256.55,0.00022191,3]
[349542485,1737286246849,-875.5,0.00022191,3]
[349542486,1737286246859,-500.0,0.00022191,3]
[349542487,1737286246868,-4856.21,0.00022191,3]
[349542488,1737286246877,-151.0,0.00022191,7]
[349542489,1737286246886,-151.0,0.00022191,7]
[349542490,1737286246895,-1700.51,0.00022191,3]
[349542491,1737286246904,-500.0,0.00022191,3]
[349542492,1737286246914,-500.0,0.00022191,3]
[349542493,1737286246923,-1492.03,0.00022191,3]
[349542494,1737286246932,-567.35,0.00022191,3]
[349542495,1737286246941,-500.0,0.00022191,3]
[349542496,1737286246954,-500.0,0.00022191,3]
[349542497,1737286246963,-500.0,0.00022191,3]
[349542498,1737286246972,-500.0,0.00022191,3]
[349542499,1737286246984,-500.0,0.00022191,3]
[349542500,1737286246994,-500.0,0.00022191,3]
[349542501,1737286247003,-21369.48,0.00022191,3]
[349542502,1737286247012,-371.728511,0.00022191,7]
[349542503,1737286247024,-371.728511,0.00022191,7]
[349542504,1737286247034,-371.728511,0.00022191,7]
[349542505,1737286247043,-184.888945,0.00022191,7]
[349542506,1737286247052,-184.888945,0.00022191,7]
[349542507,1737286247062,-500.0,0.00022191,2]
[349542508,1737286247072,-371.728511,0.00022191,7]
[349542509,1737286247082,-371.728511,0.00022191,7]
[349542510,1737286247092,-184.888945,0.00022191,7]
[349542511,1737286247101,-371.728503,0.00022191,7]
[349542512,1737286247110,-184.888947,0.00022191,7]
[349542513,1737286247120,-500.0,0.00022191,3]
[349542514,1737286247129,-500.0,0.00022191,3]
[349542515,1737286247139,-165.71478,0.00022191,7]
[349542516,1737286247148,-1046.97,0.00022191,3]
[349542517,1737286247158,-324.47178607,0.00022191,3]
[349542518,1737286247167,-14060.88,0.00022191,3]
[349542519,1737286247176,-8262.88,0.00022191,3]
[349542520,1737286247186,-500.0,0.00022191,3]
[349542521,1737286247195,-500.0,0.00022191,3]
[349542522,1737286247204,-2649.98,0.00022191,3]
[349542523,1737286247214,-1128.588345,0.00022191,7]
[349542524,1737286247223,-1128.588345,0.00022191,7]
[349542525,1737286247234,-500.0,0.00022191,3]
[349542526,1737286247243,-1128.588345,0.00022191,7]
[349542527,1737286247253,-1128.588347,0.00022191,7]
[349542528,1737286247262,-3161.86,0.00022191,3]
[349542529,1737286247271,-500.0,0.00022191,3]
[349542530,1737286247280,-151.0,0.00022191,7]
[349542531,1737286247290,-151.0,0.00022191,7]
[349542532,1737286247299,-151.0,0.00022191,7]
[349542533,1737286247307,-500.0,0.00022191,3]
[349542534,1737286247316,-603.19,0.00022191,3]
[349542535,1737286247326,-500.0,0.00022191,3]
[349542536,1737286247335,-1541.97,0.00022191,3]
[349542537,1737286247344,-500.0,0.00022191,3]
[349542538,1737286247353,-500.0,0.00022191,3]
[349542539,1737286247363,-3653.17,0.00022191,3]
[349542540,1737286247373,-1317.97,0.00022191,3]
[349542541,1737286247382,-770.76,0.00022191,3]
[349542542,1737286247391,-288.017159,0.00022191,7]
[349542543,1737286247400,-288.017159,0.00022191,7]
[349542544,1737286247410,-288.017159,0.00022191,7]
[349542545,1737286247419,-288.017159,0.00022191,7]
[349542546,1737286247428,-288.017159,0.00022191,7]
[349542547,1737286247437,-288.01716499,0.00022191,7]
[349542548,1737286247447,-1217.37,0.00022191,3]
[349542549,1737286247456,-480.71155293,0.00022191,3]
[349542550,1737286247466,-500.0,0.00022191,3]
[349542551,1737286247475,-500.0,0.00022191,3]
[349542552,1737286247487,-500.0,0.00022191,3]
[349542553,1737286247497,-500.0,0.00022191,3]
[349542554,1737286247506,-396.53937508,0.00022191,3]
[349542555,1737286247518,-1000.0,0.000222,5]
[349542556,1737286247529,-1000.0,0.000222,6]
[349542557,1737286247538,-151.0,0.000222,8]
[349542558,1737286247548,-151.0,0.000222,7]
[349542559,1737286247557,-151.0,0.000222,7]
[349542560,1737286247568,-151.0,0.000222,7]
[349542561,1737286247579,-151.0,0.000222,10]
[349542562,1737286247588,-13253.41583377,0.0002221,3]
[349542563,1737286247598,-151.0,0.000223,7]
[349542564,1737286247607,-151.0,0.000223,10]
[349542565,1737286247617,-13253.41583377,0.00022314,3]
[349542566,1737286247626,-500.0,0.00022328,3]
[349542567,1737286247635,-500.0,0.00022328,3]
[349542568,1737286247647,-500.0,0.00022328,3]
[349542569,1737286247658,-1033.51,0.00022328,3]
[349542570,1737286247667,-500.0,0.00022328,3]
[349542571,1737286247676,-500.0,0.00022328,3]
[349542572,1737286247772,-1069.31,0.00022328,3]
[349542573,1737286247783,-620.40615559,0.00022328,3]
[349542574,1737286247792,-460.56266105,0.00022328,3]
[349542575,1737286247802,-625.18,0.00022328,3]
[349542576,1737286247811,-500.0,0.00022328,3]
[349542577,1737286247821,-649.06697316,0.00022328,3]
[349542578,1737286247830,-500.0,0.00022328,3]
[349542579,1737286247839,-500.0,0.00022328,3]
[349542580,1737286247849,-500.0,0.00022328,3]
[349542581,1737286247858,-911.53,0.00022328,3]
[349542582,1737286247867,-587.36,0.00022328,3]
[349542583,1737286247876,-500.0,0.00022328,3]
[349542584,1737286247886,-1109.87,0.00022328,3]
[349542585,1737286247895,-500.0,0.00022328,3]
[349542586,1737286247904,-500.0,0.00022328,3]
[349542587,1737286247913,-500.0,0.00022328,3]
[349542588,1737286247923,-500.0,0.00022328,3]
[349542589,1737286247933,-680.95,0.00022328,3]
[349542590,1737286247946,-500.0,0.00022328,3]
[349542591,1737286247956,-509.0580298,0.00022328,3]
[349542592,1737286247965,-500.0,0.00022328,3]
[349542593,1737286247975,-500.0,0.00022328,3]
[349542594,1737286247987,-500.0,0.00022328,3]
[349542595,1737286247997,-500.0,0.00022328,3]
[349542596,1737286248007,-389.97379755,0.00022328,3]
[349542597,1737286248018,-500.0,0.00022328,3]
[349542598,1737286248027,-500.0,0.00022328,3]
[349542599,1737286248037,-500.0,0.00022328,3]
[349542600,1737286248046,-485.76629156,0.00022328,3]
[349542601,1737286248056,-500.0,0.00022328,3]
[349542602,1737286248066,-1034.2,0.00022328,2]
[349542603,1737286248076,-500.0,0.00022328,3]
[349542604,1737286248085,-616.07167751,0.00022328,3]
[349542605,1737286248095,-500.0,0.00022328,3]
[349542606,1737286248104,-1681.82,0.00022328,3]
[349542607,1737286248114,-500.0,0.00022328,3]
[349542608,1737286248123,-863.95,0.00022328,3]
[349542609,1737286248132,-500.0,0.00022328,3]
[349542610,1737286248141,-500.0,0.00022328,3]
[349542611,1737286248150,-789.57,0.00022328,3]
[349542612,1737286248160,-500.0,0.00022328,3]
[349542613,1737286248169,-500.0,0.00022328,3]
[349542614,1737286248178,-2775.52,0.00022328,3]
[349542615,1737286248188,-196.08,0.00022328,3]
[349542616,1737286248197,-3367.97,0.00022328,3]
[349542617,1737286248207,-8186.41,0.00022328,3]
[349542618,1737286248216,-500.0,0.00022328,3]
[349542619,1737286248226,-500.0,0.00022328,3]
[349542620,1737286248238,-745.84,0.00022328,3]
[349542621,1737286248247,-7217.12262824,0.00022328,3]
[349542622,1737286248261,-1598.76797227,0.00022328,3]
[349542623,1737286248379,-234.612516,0.00022,7]
[349542624,1737286248388,-957.6455444,0.00022328,3]
[349542625,1737286248472,-399.0508337,0.00022053,2]
[349542626,1737286248481,-119.24170314,0.00022328,3]
[349542627,1737286248493,-364.765,0.00022328,3]
[349542628,1737286248505,-1837.84715195,0.00022328,3]
[349542629,1737286248515,-500.0,0.00022328,3]
[349542630,1737286248525,-642.19,0.00022328,3]
[349542631,1737286248535,-36077.63,0.00022328,3]
[349542632,1737286248545,-1140.02,0.00022328,3]
[349542633,1737286248555,-500.0,0.00022328,3]
[349542634,1737286248565,-500.0,0.00022328,3]
[349542635,1737286248575,-2039.22531165,0.00022328,3]
[349542636,1737286248586,-4563.12468835,0.00022328,3]
[349542637,1737286248595,-4060.92,0.00022328,3]
[349542638,1737286248606,-148.86974109,0.00022328,3]
[349542639,1737286248618,-317.76384243,0.00022328,3]
[349542640,1737286248629,-33.36641648,0.00022328,3]
[349542641,1737286248638,-1554.19,0.00022328,3]
[349542642,1737286248648,-191.61358352,0.00022328,3]
[349542643,1737286248659,-1286.77641648,0.00022328,3]
[349542644,1737286248669,-500.0,0.00022328,3]
[349542645,1737286248679,-1256.55,0.00022328,3]
[349542646,1737286248688,-875.5,0.00022328,3]
[349542647,1737286248698,-500.0,0.00022328,3]
[349542648,1737286248707,-4856.21,0.00022328,3]
[349542649,1737286248716,-1700.51,0.00022328,3]
[349542650,1737286248726,-500.0,0.00022328,3]
[349542651,1737286248737,-500.0,0.00022328,3]
[349542652,1737286248747,-1492.03,0.00022328,3]
[349542653,1737286248756,-567.35,0.00022328,3]
[349542654,1737286248766,-500.0,0.00022328,3]
[349542655,1737286248775,-500.0,0.00022328,3]
[349542656,1737286248785,-500.0,0.00022328,3]
[349542657,1737286248794,-500.0,0.00022328,3]
[349542658,1737286248803,-500.0,0.00022328,3]
[349542659,1737286248814,-21369.48,0.00022328,3]
[349542660,1737286248823,-500.0,0.00022328,2]
[349542661,1737286248832,-500.0,0.00022328,3]
[349542662,1737286248841,-500.0,0.00022328,3]
[349542663,1737286248851,-1046.97,0.00022328,3]
[349542664,1737286248860,-3870.81743739,0.00022328,3]
[349542665,1737286248998,-1994.21820083,0.00022328,3]
[349542666,1737286249009,-5152.68809764,0.00022328,3]
[349542667,1737286249021,-3043.15626414,0.00022328,3]
[349542668,1737286249032,-5804.28373586,0.00022328,3]
[349542670,1737286399542,248.064965,0.00013973,2]
[349542671,1737286702988,-861.26,0.00021917,3]
[349542672,1737286703010,-500.0,0.00021917,3]
[349542673,1737286703031,-500.0,0.00021917,3]
[349542674,1737286703054,-891.09,0.00021917,3]
[349542675,1737286703077,-500.0,0.00021917,3]
[349542676,1737286703104,-520.98,0.00021917,3]
[349542677,1737286703128,-500.0,0.00021917,3]
[349542678,1737286703151,-759.6,0.00021917,3]
[349542679,1737286703177,-500.0,0.00021917,3]
[349542680,1737286703199,-769.07,0.00021917,3]
[349542683,1737286731990,-155.83,0.00021917,3]
[349542684,1737286732011,-500.0,0.00021917,3]
[349542685,1737286732032,-500.0,0.00021917,3]
[349542686,1737286732052,-500.0,0.00021917,3]
[349542687,1737286732072,-183.82209283,0.00021917,3]
[349542688,1737286732095,-500.0,0.00021917,3]
[349542689,1737286732115,-567.46,0.00021917,3]
[349542690,1737286732136,-500.0,0.00021917,3]
[349542691,1737286732157,-555.6,0.00021917,3]
[349542692,1737286732180,-509.61631367,0.00021917,3]
[349542693,1737286732202,-500.0,0.00021917,3]
[349542694,1737286732225,-500.0,0.00021917,3]
[349542695,1737286732246,-950.02,0.00021917,3]
[349542696,1737286732268,-1221.6515935,0.00021917,3]
[349542697,1737286806334,5000.0,0.00016425,2]
[349542698,1737286806639,5000.0,0.00016425,2]
[349542700,1737287012737,3130.0,0.000167,2]
[349542701,1737287031219,10601.52794701,0.00023702,120]
[349542725,1737287329005,257.109204,0.00013973,2]
[349543110,1737287438764,-500.0,0.00020337,2]
[349543112,1737287438773,-88.75559299,0.00020447,2]
[349543123,1737287438876,-168.35361101,0.00020447,2]
[349543125,1737287438886,-179.03092158,0.0002121,2]
[349543127,1737287438898,-304.40907842,0.0002121,2]
[349543129,1737287438908,-570.68860713,0.00021602,2]
[349543131,1737287438918,-151.0,0.00021672,5]
[349543133,1737287438928,-158.051,0.00021916,2]
[349543136,1737287438938,-300.0,0.00021916,2]
[349543138,1737287438947,-500.0,0.00021917,3]
[349543139,1737287438956,-500.0,0.00021917,3]
[349543142,1737287438965,-500.0,0.00021917,3]
[349543143,1737287438975,-500.0,0.00021917,3]
[349543146,1737287438984,-500.0,0.00021917,3]
[349543147,1737287438993,-500.0,0.00021917,3]
[349543150,1737287439003,-500.0,0.00021917,3]
[349543151,1737287439013,-825.37,0.00021917,3]
[349543154,1737287439022,-853.96,0.00021917,3]
[349543155,1737287439031,-286.16301427,0.00021917,3]
[349543157,1737287439041,-500.0,0.00021917,3]
[349543159,1737287439051,-500.0,0.00021917,3]
[349543161,1737287439064,-500.0,0.00021917,3]
[349543164,1737287439074,-727.95,0.00021917,3]
[349543166,1737287439083,-500.0,0.00021917,3]